fUST/lending_fUST_20250228
["ID","MTS","AMOUNT","RATE_DAILY","PERIOD"]
[354827647,1740723037113,-501.67613118,0.00054794,120]
[354827648,1740723037123,-535.69,0.00054794,120]
[354827649,1740723037133,-500.0,0.00054794,120]
[354827650,1740723037143,-1727.58,0.00054794,120]
[354827651,1740723037152,-500.0,0.00054794,120]
[354827652,1740723037162,-500.0,0.00054794,120]
[354827653,1740723037172,-505.02453337,0.00054794,120]
[354827654,1740723037181,-501.77196525,0.00054794,120]
[354827655,1740723037191,-500.0,0.00054794,120]
[354827656,1740723037202,-500.0,0.00054794,120]
[354827657,1740723037211,-1320.14,0.00054794,120]
[354827658,1740723037341,-502.16240039,0.00054794,120]
[354827659,1740723037352,-500.0,0.00054794,120]
[354827660,1740723037361,-500.0,0.00054794,120]
[354827661,1740723037371,-503.89633789,0.00054794,120]
[354827662,1740723037380,-501.14306455,0.00054794,120]
[354827663,1740723037390,-5842.02,0.00054794,120]
[354827664,1740723037399,-500.0,0.00054794,120]
[354827665,1740723037410,-500.0,0.00054794,120]
[354827666,1740723037419,-500.0,0.00054794,120]
[354827667,1740723037429,-562.8,0.00054794,120]
[354827668,1740723037438,-2116.61,0.00054794,120]
[354827669,1740723037450,-700.67,0.00054794,120]
[354827670,1740723037460,-503.94685675,0.00054794,120]
[354827671,1740723037469,-500.0,0.00054794,120]
[354827672,1740723037478,-500.0,0.00054794,120]
[354827673,1740723037487,-507.02329536,0.00054794,120]
[354827674,1740723037497,-500.0,0.00054794,120]
[354827675,1740723037507,-505.62615419,0.00054794,120]
[354827676,1740723037516,-500.0,0.00054794,120]
[354827677,1740723037525,-503.46553787,0.00054794,120]
[354827678,1740723037535,-500.0,0.00054794,120]
[354827680,1740723037545,-503.21310985,0.00054794,120]
[354827682,1740723037554,-923.37,0.00054794,120]
[354827683,1740723037564,-1689.17,0.00054794,120]
[354827684,1740723037573,-511.65,0.00054794,120]
[354827685,1740723037582,-44339.14,0.00054794,7]
[354827686,1740723037591,-500.0,0.00054794,120]
[354827687,1740723037601,-500.0,0.00054794,120]
[354827689,1740723037611,-500.0,0.00054794,120]
[354827691,1740723037620,-500.0,0.00054794,120]
[354827693,1740723037629,-508.46764408,0.00054794,120]
[354827694,1740723037638,-500.0,0.00054794,120]
[354827695,1740723037647,-500.0,0.00054794,120]
[354827696,1740723037657,-500.0,0.00054794,120]
[354827697,1740723037666,-500.0,0.00054794,120]
[354827698,1740723037675,-381.2569572,0.00054794,120]
[354827699,1740723037686,-500.0,0.00054794,120]
[354827700,1740723037699,-2322.08,0.00054794,120]
[354827701,1740723037708,-500.0,0.00054794,120]
[354827702,1740723037717,-1189.13,0.00054794,120]
[354827703,1740723037727,-500.0,0.00054794,120]
[354827704,1740723037736,-479.71735093,0.00054794,120]
[354827705,1740723037746,-500.0,0.00054794,120]
[354827706,1740723037755,-500.0,0.00054794,120]
[354827707,1740723037765,-500.0,0.00054794,120]
[354827708,1740723037775,-500.0,0.00054794,120]
[354827709,1740723037784,-500.0,0.00054794,120]
[354827710,1740723037794,-500.0,0.00054794,120]
[354827711,1740723037803,-500.0,0.00054794,120]
[354827712,1740723037813,-1860.36,0.00054794,120]
[354827714,1740723037822,-512.05734213,0.00054794,120]
[354827716,1740723037832,-500.0,0.00054794,120]
[354827718,1740723037842,-501.95376601,0.00054794,120]
[354827720,1740723037852,-500.0,0.00054794,120]
[354827722,1740723037862,-500.0,0.00054794,120]
[354827724,1740723037871,-502.86668811,0.00054794,120]
[354827726,1740723037880,-500.0,0.00054794,120]
[354827728,1740723037890,-25352.77,0.00054794,120]
[354827730,1740723037899,-1293.12,0.00054794,120]
[354827732,1740723037908,-500.0,0.00054794,120]
[354827734,1740723037918,-500.0,0.00054794,120]
[354827736,1740723037927,-500.0,0.00054794,120]
[354827739,1740723037947,-907.77,0.00054794,120]
[354827741,1740723037959,-500.0,0.00054794,120]
[354827743,1740723037970,-502.97558319,0.00054794,120]
[354827745,1740723037980,-500.0,0.00054794,21]
[354827747,1740723037990,-500.0,0.00054794,120]
[354827749,1740723038000,-525.83774232,0.00054794,120]
[354827750,1740723038010,-500.0,0.00054794,120]
[354827752,1740723038020,-501.8106813,0.00054794,120]
[354827754,1740723038030,-500.0,0.00054794,120]
[354827755,1740723038040,-500.0,0.00054794,120]
[354827757,1740723038050,-500.0,0.00054794,120]
[354827759,1740723038060,-678.38,0.00054794,120]
[354827761,1740723038069,-1673.62,0.00054794,120]
[354827763,1740723038079,-1233.72,0.00054794,120]
[354827766,1740723038089,-242.17,0.00054794,120]
[354827768,1740723038099,-530.60420591,0.00054794,120]
[354827770,1740723038110,-500.0,0.00054794,120]
[354827772,1740723038121,-450.90721686,0.00054794,120]
[354827774,1740723038132,-503.50545359,0.00054794,120]
[354827776,1740723038142,-500.0,0.00054794,120]
[354827778,1740723038153,-500.0,0.00054794,120]
[354827780,1740723038164,-503.72007451,0.00054794,120]
[354827782,1740723038175,-500.0,0.00054794,120]
[354827784,1740723038186,-504.20589903,0.00054794,120]
[354827786,1740723038199,-500.0,0.00054794,120]
[354827788,1740723038210,-500.0,0.00054794,120]
[354827790,1740723038220,-500.0,0.00054794,120]
[354827792,1740723038230,-535.17,0.00054794,120]
[354827794,1740723038240,-500.0,0.00054794,120]
[354827797,1740723038250,-192.15038798,0.00054794,120]
[354827799,1740723038260,-500.0,0.00054794,120]
[354827800,1740723038270,-500.0,0.00054794,120]
[354827802,1740723038281,-500.0,0.00054794,2]
[354827804,1740723038291,-500.0,0.00054794,120]
[354827806,1740723038300,-503.65652544,0.00054794,120]
[354827808,1740723038310,-503.66029461,0.00054794,60]
[354827810,1740723038320,-500.0,0.00054794,120]
[354827811,1740723038330,-151.33,0.000548,30]
[354827812,1740723038340,-431.98,0.000548,30]
[354827814,1740723038350,-161.79,0.000548,30]
[354827815,1740723038359,-24502.69,0.000548,30]
[354827816,1740723038370,-508.34,0.000549,30]
[354827817,1740723038380,-351.93106397,0.000549,13]
[354827818,1740723038389,-818.0,0.00055,120]
[354827819,1740723038399,-175.0,0.00055,120]
[354827820,1740723038410,-195.0,0.00055,120]
[354827821,1740723038419,-519.57020333,0.00055377,2]
[354827822,1740723038429,-170.0,0.000557,120]
[354827823,1740723038439,-157.0,0.000569,120]
[354827824,1740723038452,-157.0,0.000569,120]
[354827825,1740723038463,-156.0,0.000569,120]
[354827826,1740723038473,-222.0,0.00057,120]
[354827827,1740723038483,-818.0,0.00057,120]
[354827828,1740723038492,-175.0,0.00057,120]
[354827829,1740723038503,-195.0,0.00057,120]
[354827830,1740723038512,-219.80801822,0.00058496,2]
[354827831,1740723038522,-170.0,0.000586,120]
[354827832,1740723038532,-818.0,0.00059,120]
[354827833,1740723038542,-175.0,0.00059,120]
[354827834,1740723038553,-195.0,0.00059,120]
[354827835,1740723038566,-300.0,0.0006,33]
[354827836,1740723038578,-205.8572829,0.0006,120]
[354827837,1740723038588,-293.0,0.0006,120]
[354827838,1740723038598,-157.0,0.000602,120]
[354827839,1740723038608,-157.0,0.000602,120]
[354827840,1740723038617,-156.0,0.000602,120]
[354827841,1740723038626,-1000.0,0.00060252,15]
[354827842,1740723038636,-1000.0,0.00060252,15]
[354827843,1740723038645,-217.31118753,0.00060252,15]
[354827844,1740723038654,-2901.44,0.00060273,120]
[354827845,1740723038663,-818.0,0.00061,120]
[354827846,1740723038673,-175.0,0.00061,120]
[354827847,1740723038683,-195.0,0.00061,120]
[354827848,1740723038693,-300.0,0.000615,34]
[354827849,1740723038705,-170.0,0.000615,120]
[354827850,1740723038714,-219.80801822,0.00062297,2]
[354827851,1740723038723,-818.0,0.00063,120]
[354827852,1740723038733,-300.0,0.00063,35]
[354827853,1740723038743,-175.0,0.00063,120]
[354827854,1740723038752,-195.0,0.00063,120]
[354827855,1740723038761,-500.0,0.00063013,120]
[354827856,1740723038771,-1531.0,0.00063014,120]
[354827857,1740723038781,-1528.0,0.00063014,120]
[354827858,1740723038790,-1528.0,0.00063014,120]
[354827859,1740723038800,-1528.0,0.00063014,120]
[354827860,1740723038810,-157.0,0.000635,120]
[354827861,1740723038819,-157.0,0.000635,120]
[354827862,1740723038828,-170.0,0.000644,120]
[354827863,1740723038837,-359.0,0.000645,36]
[354827864,1740723038846,-40017.3781863,0.000649,2]
[354827865,1740723038856,-818.0,0.00065,120]
[354827866,1740723038865,-175.0,0.00065,120]
[354827867,1740723038875,-195.0,0.00065,120]
[354827868,1740723038885,-2901.44,0.00065752,120]
[354827869,1740723038894,-219.80801822,0.00066099,2]
[354827870,1740723038904,-161.79,0.000666,30]
[354827871,1740723038914,-24502.69,0.000666,30]
[354827872,1740723038923,-157.0,0.000668,120]
[354827873,1740723038933,-157.0,0.000668,120]
[354827874,1740723038942,-222.0,0.00067,120]
[354827875,1740723038954,-818.0,0.00067,120]
[354827876,1740723038964,-151.33,0.00067,30]
[354827877,1740723038973,-431.98,0.00067,30]
[354827878,1740723038982,-172.0,0.00067,120]
[354827879,1740723038991,-209.0,0.00067,120]
[354827880,1740723039001,-175.0,0.00067,120]
[354827881,1740723039011,-195.0,0.00067,120]
[354827882,1740723039020,-179.0,0.00067,120]
[354827883,1740723039030,-170.0,0.000673,120]
[354827884,1740723039040,-2000.0,0.00067368,4]
[354827885,1740723039049,-508.34,0.000682,30]
[354827886,1740723039058,-666.0,0.00068493,120]
[354827887,1740723039068,-1000.0,0.00068493,60]
[354827888,1740723039077,-500.0,0.00068493,120]
[354827889,1740723039087,-422.14236539,0.00068493,120]
[354827890,1740723039096,-666.0,0.00068493,2]
[354827891,1740723039106,-1000.0,0.00068493,120]
[354827892,1740723039115,-151.0,0.000685,42]
[354827893,1740723039125,-2000.0,0.00068631,4]
[354827894,1740723039135,-1000.0,0.00069,120]
[354827895,1740723039144,-2000.0,0.00069894,4]
[354827896,1740723039154,-219.80801822,0.000699,2]
[354827897,1740723039164,-169.66521162,0.000699,120]
[354827898,1740723039174,-500.0,0.000699,120]
[354827899,1740723039183,-343.7342168,0.000699,120]
[354827900,1740723039193,-500.0,0.00069973,15]
[354827901,1740723039204,-500.0,0.00069973,15]
[354827902,1740723039214,-500.0,0.00069973,7]
[354827903,1740723039223,-500.0,0.00069973,14]
[354827904,1740723039232,-500.0,0.00069973,15]
[354827905,1740723039242,-500.0,0.00069973,2]
[354827906,1740723039251,-500.0,0.00069973,14]
[354827907,1740723039262,-500.0,0.00069973,15]
[354827908,1740723039271,-499.76969054,0.00069973,15]
[354827909,1740723039281,-500.0,0.00069973,14]
[354827910,1740723039290,-500.0,0.00069973,15]
[354827911,1740723039300,-500.0,0.00069973,14]
[354827912,1740723039310,-8892.75070806,0.0006999,4]
[354827913,1740723039320,-49556.93779026,0.0007,91]
[354827914,1740723039330,-30847.87175561,0.0007,63]
[354827915,1740723039339,-63044.16443053,0.0007,2]
[354827916,1740723039400,-17.88477633,0.0007,2]
[354827917,1740723039820,-446.17,0.00054784,10]
[354827918,1740723039829,-500.0,0.00054794,120]
[354827919,1740723039840,-500.0,0.00054794,120]
[354827920,1740723039849,-140.65,0.00059,120]
[354827921,1740723039894,-859.35,0.00059,120]
[354827922,1740723039903,-156.0,0.000635,120]
[354827923,1740723039912,-156.0,0.000668,120]
[354827924,1740723039922,-36.1457768,0.00069999,120]
[354827925,1740723039934,-143.78789337,0.00069999,120]
[354827926,1740723039943,-188.02410663,0.00069999,31]
[354827927,1740723039956,-98.16740367,0.00069999,31]
[354827928,1740723039969,-500.0,0.00069999,120]
[354827929,1740723039979,-252.01017693,0.00069999,120]
[354827930,1740723039989,-80353.60935586,0.0007,2]
[354827931,1740723040021,-17.86484298,0.0007,2]
[354827932,1740723040037,-522.63734845,0.0007,2]
[354827949,1740723040407,-199121.34482447,0.0007,2]
[354827950,1740723040455,-16029.23883571,0.0007,2]
[354827951,1740723040637,-616.70026554,0.0007,2]
[354827982,1740723043969,-2.68645804,0.0007,2]
[354827983,1740723043981,-31557.51950052,0.0007,2]
[354828002,1740723046518,-250.0,0.00054793,120]
[354828003,1740723046528,-500.0,0.00054794,120]
[354828004,1740723046538,-1232.93293388,0.0007,2]
[354828005,1740723046615,-128.18437535,0.0007,2]
[354828008,1740723059939,170.0,0.000503,120]
[354828009,1740723062255,170.0,0.000536,120]
[354828010,1740723095368,213.0,0.00049,120]
[354828011,1740723097665,213.0,0.00051,120]
[354828012,1740723099942,213.0,0.00053,120]
[354828013,1740723139757,587.0,0.00049,120]
[354828014,1740723142088,587.0,0.00051,120]
[354828015,1740723144386,587.0,0.00053,120]
[354828016,1740723192734,500.0,0.00027,30]
[354828019,1740723501079,500.0,0.00027,30]
[354828020,1740723549943,2085.98338228,0.00025,30]
[354828026,1740723751591,1027.0,0.00035,30]
[354828027,1740723808853,500.0,0.00027,30]
[354828040,1740724032323,-206.80610171,0.00040887,2]
[354828041,1740724044096,-127.40889829,0.00040887,2]
[354828042,1740724044123,-217.33160201,0.00041651,2]
[354828043,1740724046159,-21.32422999,0.00041651,2]
[354828044,1740724046180,-303.0,0.00045,120]
[354828045,1740724046201,-172.9965848,0.00045,120]
[354828046,1740724046222,-550.0,0.00045146,5]
[354828047,1740724046247,-7723.29929461,0.00045147,2]
[354828048,1740724048081,-5606.71994848,0.00045147,2]
[354828053,1740724117309,42706.38513391,0.000145,2]
[354828054,1740724117655,500.0,0.00027,30]
[354828055,1740724145121,-246.96559857,0.0004198,2]
[354828056,1740724145145,-151.0,0.00045,120]
[354828057,1740724145168,-550.0,0.00045146,5]
[354828058,1740724145190,-1956.9289618,0.00045147,2]
[354828059,1740724150120,-9613.05179511,0.00045147,2]
[354828060,1740724150143,-770.0,0.00047897,5]
[354828061,1740724155649,386.35717118,0.00047797,120]
[354828062,1740724159113,-500.0,0.0005,30]
[354828063,1740724159136,-1077.0,0.00050817,15]
[354828064,1740724159165,-1399.44519645,0.00052,120]
[354828065,1740724159189,-1114.0,0.00053914,15]
[354828066,1740724163118,-1161.95525673,0.00054594,2]
[354828067,1740724163141,-232.3792632,0.00054594,2]
[354828068,1740724163167,-170.53412813,0.00054694,2]
[354828069,1740724163190,-510.21427612,0.00054773,5]
[354828070,1740724163213,-500.0,0.00054773,10]
[354828071,1740724163234,-151.2166337,0.00054773,2]
[354828072,1740724163255,-500.0,0.00054773,10]
[354828073,1740724163460,-500.47285007,0.00054773,10]
[354828074,1740724163481,-500.0,0.00054773,10]
[354828075,1740724163501,-501.18039987,0.00054773,7]
[354828076,1740724163520,-500.0,0.00054773,10]
[354828077,1740724163541,-266.59793989,0.00054773,10]
[354828078,1740724163561,-161.22247608,0.00054773,10]
[354828079,1740724163582,-595.15,0.00054784,10]
[354828080,1740724163603,-929.23,0.00054784,10]
[354828081,1740724163624,-500.0,0.00054793,30]
[354828082,1740724163647,-376.14,0.00054793,120]
[354828083,1740724163668,-1363.00384827,0.00054793,120]
[354828084,1740724164099,-1322.98615173,0.00054793,120]
[354828085,1740724164127,-500.0,0.00054793,120]
[354828086,1740724164153,-500.0,0.00054793,120]
[354828087,1740724164177,-362.16169028,0.00054793,2]
[354828088,1740724164201,-500.0,0.00054793,120]
[354828089,1740724164225,-500.0,0.00054793,120]
[354828090,1740724164249,-340.95959126,0.00054793,120]
[354828091,1740724164273,-500.0,0.00054793,120]
[354828092,1740724164296,-300.0,0.00054793,120]
[354828093,1740724164319,-498.38470295,0.00054794,120]
[354828094,1740724164343,-500.82296178,0.00054794,120]
[354828095,1740724164363,-500.0,0.00054794,120]
[354828096,1740724164388,-234.97220603,0.00054794,120]
[354828097,1740724167129,-265.02779397,0.00054794,120]
[354828098,1740724167151,-500.0,0.00054794,120]
[354828099,1740724167173,-500.0,0.00054794,120]
[354828100,1740724167193,-500.0,0.00054794,120]
[354828101,1740724167214,-500.0,0.00054794,120]
[354828102,1740724167236,-500.0,0.00054794,120]
[354828103,1740724167257,-264.84377771,0.00054794,120]
[354828104,1740724167279,-500.0,0.00054794,120]
[354828105,1740724167300,-500.0,0.00054794,120]
[354828106,1740724167322,-2000.0,0.00054794,2]
[354828107,1740724167343,-500.0,0.00054794,120]
[354828108,1740724167364,-500.0,0.00054794,120]
[354828109,1740724167384,-500.0,0.00054794,120]
[354828110,1740724167406,-500.0,0.00054794,120]
[354828111,1740724167428,-374.20775426,0.00054794,120]
[354828112,1740724167449,-500.0,0.00054794,120]
[354828113,1740724167470,-500.0,0.00054794,120]
[354828114,1740724167491,-25.79833887,0.00054794,120]
[354828115,1740724168090,-474.20166113,0.00054794,120]
[354828116,1740724168113,-527.07859222,0.00054794,120]
[354828117,1740724168135,-550.14,0.00054794,120]
[354828118,1740724168163,-500.0,0.00054794,120]
[354828119,1740724168184,-500.0,0.00054794,120]
[354828120,1740724168205,-500.0,0.00054794,120]
[354828121,1740724168228,-500.0,0.00054794,120]
[354828122,1740724168251,-500.0,0.00054794,120]
[354828123,1740724168272,-405.77493244,0.00054794,120]
[354828124,1740724168293,-502.49890242,0.00054794,120]
[354828125,1740724168314,-500.0,0.00054794,120]
[354828126,1740724168336,-500.0,0.00054794,120]
[354828127,1740724168357,-500.0,0.00054794,120]
[354828128,1740724168378,-502.54940702,0.00054794,120]
[354828129,1740724168399,-500.0,0.00054794,120]
[354828130,1740724168421,-500.0,0.00054794,120]
[354828131,1740724168442,-500.0,0.00054794,120]
[354828132,1740724168464,-305.38890583,0.00054794,120]
[354828137,1740724217133,183.0,0.00052,120]
[354828138,1740724224626,623.83405209,0.00052218,2]
[354828190,1740724236474,-311.05764262,0.00054507,2]
[354828191,1740724236483,-457.8874332,0.00054694,28]
[354828192,1740724236495,-810.80335284,0.00054694,28]
[354828193,1740724236505,-500.0,0.00054773,10]
[354828194,1740724236515,-500.0,0.00054773,10]
[354828195,1740724236524,-645.3,0.00054784,10]
[354828196,1740724236534,-666.81,0.00054784,10]
[354828197,1740724236543,-555.67,0.00054784,10]
[354828198,1740724236552,-463.06,0.00054784,10]
[354828199,1740724236562,-500.0,0.00054794,120]
[354828200,1740724236572,-500.0,0.00054794,120]
[354828201,1740724236581,-500.0,0.00054794,120]
[354828202,1740724236590,-494.35905183,0.00054794,120]
[354828203,1740724236600,-500.0,0.00054794,120]
[354828204,1740724236609,-500.0,0.00054794,120]
[354828205,1740724236618,-976.11,0.00054794,120]
[354828206,1740724236628,-1305.01,0.00054794,120]
[354828207,1740724236638,-803.34,0.00054794,120]
[354828208,1740724236647,-500.0,0.00054794,120]
[354828209,1740724236658,-462.32688355,0.00054794,120]
[354828210,1740724236668,-500.0,0.00054794,120]
[354828211,1740724236678,-246.38295585,0.00054794,120]
[354828212,1740724236691,-253.61704415,0.00054794,120]
[354828213,1740724236700,-500.0,0.00054794,120]
[354828214,1740724236712,-725.01,0.00054794,120]
[354828215,1740724236722,-649.75,0.00054794,120]
[354828216,1740724236731,-500.0,0.00054794,120]
[354828217,1740724236741,-500.0,0.00054794,120]
[354828218,1740724236750,-293.83925212,0.00054794,120]
[354828219,1740724236762,-206.16074788,0.00054794,120]
[354828220,1740724236772,-500.0,0.00054794,120]
[354828221,1740724236782,-500.0,0.00054794,120]
[354828222,1740724236792,-502.37022927,0.00054794,120]
[354828223,1740724236802,-505.26053619,0.00054794,120]
[354828224,1740724236811,-500.0,0.00054794,120]
[354828225,1740724236821,-717.12,0.00054794,120]
[354828226,1740724236830,-505.6807251,0.00054794,120]
[354828227,1740724236840,-500.0,0.00054794,120]
[354828228,1740724236850,-880.43,0.00054794,120]
[354828229,1740724236860,-500.0,0.00054794,120]
[354828230,1740724236870,-313.13464628,0.00054794,120]
[354828231,1740724236880,-500.0,0.00054794,120]
[354828232,1740724236892,-560.56,0.00054794,120]
[354828233,1740724236902,-500.0,0.00054794,120]
[354828234,1740724236911,-500.0,0.00054794,120]
[354828235,1740724236921,-508.7567627,0.00054794,120]
[354828236,1740724236931,-500.0,0.00054794,120]
[354828237,1740724236940,-502.0662777,0.00054794,120]
[354828238,1740724236950,-570.64,0.00054794,120]
[354828240,1740724236962,-500.0,0.00054794,120]
[354828241,1740724236972,-500.0,0.00054794,120]
[354828242,1740724236981,-500.0,0.00054794,120]
[354828243,1740724236991,-500.0,0.00054794,120]
[354828244,1740724237000,-511.69057716,0.00054794,120]
[354828245,1740724237009,-589.23,0.00054794,2]
[354828246,1740724237019,-718.72,0.00054794,120]
[354828247,1740724237028,-500.0,0.00054794,120]
[354828248,1740724237038,-500.0,0.00054794,120]
[354828249,1740724237047,-506.53,0.00054794,120]
[354828250,1740724237057,-500.0,0.00054794,120]
[354828251,1740724237066,-1217.1,0.00054794,15]
[354828252,1740724237076,-500.0,0.00054794,120]
[354828253,1740724237088,-500.0,0.00054794,120]
[354828254,1740724237098,-500.0,0.00054794,120]
[354828255,1740724237108,-500.0,0.00054794,120]
[354828256,1740724237118,-500.0,0.00054794,120]
[354828257,1740724237127,-539.83,0.00054794,120]
[354828258,1740724237137,-500.0,0.00054794,120]
[354828259,1740724237146,-500.0,0.00054794,120]
[354828260,1740724237156,-500.0,0.00054794,120]
[354828261,1740724237166,-518.01,0.00054794,120]
[354828262,1740724237176,-506.11416344,0.00054794,120]
[354828263,1740724237186,-500.0,0.00054794,120]
[354828264,1740724237195,-500.0,0.00054794,120]
[354828265,1740724237205,-500.0,0.00054794,120]
[354828266,1740724237217,-500.0,0.00054794,120]
[354828267,1740724237226,-500.0,0.00054794,120]
[354828268,1740724237236,-500.0,0.00054794,120]
[354828269,1740724237245,-500.0,0.00054794,120]
[354828270,1740724237255,-500.0,0.00054794,120]
[354828271,1740724237263,-500.0,0.00054794,120]
[354828272,1740724237273,-500.0,0.00054794,120]
[354828273,1740724237282,-601.3,0.00054794,120]
[354828274,1740724237291,-1000.0,0.00054794,120]
[354828275,1740724237301,-503.89930332,0.00054794,120]
[354828276,1740724237310,-503.60214728,0.00054794,120]
[354828277,1740724237320,-500.0,0.00054794,120]
[354828278,1740724237473,-205.07096339,0.00054794,120]
[354828286,1740724238416,-483.91903661,0.00054794,120]
[354828287,1740724238426,-347.02096339,0.00054794,120]
[354828288,1740724238541,-152.97903661,0.00054794,120]
[354828289,1740724238551,-500.0,0.00054794,120]
[354828290,1740724238560,-500.0,0.00054794,120]
[354828291,1740724238569,-159.58858849,0.00054794,120]
[354828292,1740724238581,-340.41141151,0.00054794,120]
[354828293,1740724238590,-500.0,0.00054794,120]
[354828294,1740724238599,-500.0,0.00054794,120]
[354828295,1740724238608,-500.0,0.00054794,120]
[354828296,1740724238617,-500.0,0.00054794,120]
[354828297,1740724238627,-500.0,0.00054794,120]
[354828298,1740724238636,-500.0,0.00054794,120]
[354828299,1740724238645,-500.0,0.00054794,120]
[354828301,1740724238654,-500.0,0.00054794,120]
[354828303,1740724238663,-510.28281057,0.00054794,120]
[354828305,1740724238673,-502.99098845,0.00054794,120]
[354828307,1740724238682,-500.0,0.00054794,120]
[354828309,1740724238691,-626.62,0.00054794,120]
[354828311,1740724238700,-500.0,0.00054794,120]
[354828313,1740724238709,-500.0,0.00054794,120]
[354828315,1740724238720,-500.0,0.00054794,120]
[354828317,1740724238729,-500.0,0.00054794,120]
[354828319,1740724238738,-504.37492336,0.00054794,120]
[354828321,1740724238748,-22.01785148,0.00054794,120]
[354828322,1740724238760,-277.46854865,0.00054794,120]
[354828323,1740724238771,-200.51359987,0.00054794,120]
[354828324,1740724238781,-500.0,0.00054794,120]
[354828325,1740724238790,-670.84,0.00054794,120]
[354828326,1740724238799,-133.08994034,0.00054794,120]
[354828332,1740724240719,-366.91005966,0.00054794,120]
[354828333,1740724240729,-348.76628444,0.00054794,120]
[354828334,1740724240741,-151.23371556,0.00054794,120]
[354828335,1740724240750,-500.0,0.00054794,120]
[354828336,1740724240760,-297.85371454,0.00054794,120]
[354828337,1740724240898,-267.2614,0.00054794,120]
[354828338,1740724240911,-68.82488546,0.00054794,120]
[354828339,1740724240921,-500.0,0.00054794,120]
[354828340,1740724240932,-500.0,0.00054794,120]
[354828341,1740724240942,-993.01,0.00054794,120]
[354828342,1740724240952,-500.0,0.00054794,120]
[354828343,1740724240965,-500.0,0.00054794,120]
[354828344,1740724240974,-500.0,0.00054794,120]
[354828345,1740724240984,-500.0,0.00054794,120]
[354828346,1740724240993,-245.7833933,0.00054794,120]
[354828347,1740724241005,-254.2166067,0.00054794,120]
[354828348,1740724241014,-169.40339004,0.00054794,120]
[354828349,1740724241024,-479.88379693,0.00054794,120]
[354828374,1740724245031,-385.89,0.00054784,10]
[354828375,1740724245042,-20.11620307,0.00054794,120]
[354828376,1740724245052,-500.0,0.00054794,120]
[354828377,1740724245061,-500.0,0.00054794,120]
[354828378,1740724245071,-235.10344537,0.00054794,120]
[354828379,1740724245125,-264.89655463,0.00054794,120]
[354828380,1740724245137,-476.42986778,0.00054794,120]
[354828381,1740724245173,-23.57013222,0.00054794,120]
[354828382,1740724245183,-500.0,0.00054794,120]
[354828383,1740724245193,-500.0,0.00054794,120]
[354828384,1740724245203,-336.42986778,0.00054794,120]
[354828411,1740724246704,-3412.66013222,0.00054794,120]
[354828412,1740724246714,-85.33986778,0.00054794,120]
[354828413,1740724246923,-414.66013222,0.00054794,120]
[354828414,1740724246934,-505.43795202,0.00054794,120]
[354828415,1740724246946,-500.0,0.00054794,120]
[354828416,1740724246956,-500.0,0.00054794,120]
[354828417,1740724246970,-500.0,0.00054794,120]
[354828418,1740724246980,-500.0,0.00054794,120]
[354828419,1740724246990,-502.59285531,0.00054794,120]